fUSD/lending_fUSD_20240825
["ID","MTS","AMOUNT","RATE_DAILY","PERIOD"]
[335866604,1724553040746,-151.0,0.00010999,2]
[335866606,1724553040756,-151.0,0.00010999,2]
[335866608,1724553040766,-151.0,0.00010999,2]
[335866610,1724553040774,-151.0,0.00010999,2]
[335866611,1724553040783,-218.762562,0.00010999,2]
[335866613,1724553040792,-151.0,0.00010999,2]
[335866615,1724553040802,-151.0,0.00010999,2]
[335866617,1724553040811,-151.0,0.00010999,2]
[335866619,1724553040820,-155.511759,0.00010999,2]
[335866621,1724553040829,-151.0,0.00010999,2]
[335866623,1724553040838,-151.0,0.00010999,2]
[335866625,1724553040848,-151.0,0.00010999,2]
[335866627,1724553040858,-151.0,0.00010999,2]
[335866629,1724553040867,-151.0,0.00010999,2]
[335866631,1724553040876,-194.050362,0.00010999,2]
[335866633,1724553040885,-151.0,0.00010999,2]
[335866635,1724553040894,-151.0,0.00010999,2]
[335866637,1724553040903,-151.0,0.00010999,2]
[335866639,1724553040912,-151.0,0.00010999,2]
[335866641,1724553040922,-151.0,0.00010999,2]
[335866643,1724553040933,-168.630932,0.00010999,2]
[335866645,1724553040947,-151.0,0.00010999,2]
[335866647,1724553040956,-151.0,0.00010999,2]
[335866649,1724553040966,-151.0,0.00010999,2]
[335866651,1724553040975,-151.0,0.00010999,2]
[335866653,1724553040984,-151.0,0.00010999,2]
[335866655,1724553040993,-151.253748,0.00010999,2]
[335866657,1724553041002,-151.0,0.00010999,2]
[335866659,1724553041012,-151.0,0.00010999,2]
[335866661,1724553041021,-151.0,0.00010999,2]
[335866663,1724553041031,-151.0,0.00010999,2]
[335866665,1724553041040,-151.0,0.00010999,2]
[335866667,1724553041050,-151.0,0.00010999,2]
[335866669,1724553041059,-151.0,0.00010999,2]
[335866671,1724553041068,-151.0,0.00010999,2]
[335866673,1724553041078,-236.61052981,0.00010999,2]
[335866675,1724553041088,-151.0,0.00010999,2]
[335866677,1724553041098,-151.0,0.00010999,2]
[335866679,1724553041108,-151.0,0.00010999,2]
[335866681,1724553041117,-151.0,0.00010999,2]
[335866683,1724553041127,-151.0,0.00010999,2]
[335866685,1724553041136,-151.0,0.00010999,2]
[335866687,1724553041145,-290.565679,0.00010999,2]
[335866689,1724553041155,-280.502129,0.00010999,2]
[335866691,1724553041164,-280.502129,0.00010999,2]
[335866693,1724553041173,-280.502129,0.00010999,2]
[335866694,1724553041188,-280.502129,0.00010999,2]
[335866697,1724553041200,-280.502129,0.00010999,2]
[335866698,1724553041210,-280.502129,0.00010999,2]
[335866700,1724553041219,-280.502129,0.00010999,2]
[335866702,1724553041229,-280.502129,0.00010999,2]
[335866704,1724553041239,-280.502129,0.00010999,2]
[335866706,1724553041249,-280.502129,0.00010999,2]
[335866708,1724553041258,-280.502129,0.00010999,2]
[335866710,1724553041268,-280.502129,0.00010999,2]
[335866712,1724553041278,-280.502129,0.00010999,2]
[335866714,1724553041292,-280.502129,0.00010999,2]
[335866716,1724553041302,-500.0,0.00010999,2]
[335866718,1724553041311,-500.0,0.00010999,2]
[335866720,1724553041322,-500.0,0.00010999,2]
[335866722,1724553041333,-500.0,0.00010999,2]
[335866724,1724553041343,-500.0,0.00010999,2]
[335866726,1724553041352,-500.0,0.00010999,2]
[335866728,1724553041362,-500.0,0.00010999,2]
[335866730,1724553041373,-500.0,0.00010999,2]
[335866732,1724553041383,-505.77280531,0.00010999,2]
[335866734,1724553041393,-151.0,0.00010999,2]
[335866736,1724553041402,-151.0,0.00010999,2]
[335866738,1724553041412,-151.0,0.00010999,2]
[335866740,1724553041422,-151.0,0.00010999,2]
[335866742,1724553041431,-151.0,0.00010999,2]
[335866744,1724553041441,-151.0,0.00010999,2]
[335866746,1724553041451,-151.0,0.00010999,2]
[335866748,1724553041460,-500.0,0.00010999,2]
[335866750,1724553041469,-500.0,0.00010999,2]
[335866752,1724553041478,-500.0,0.00010999,2]
[335866754,1724553041488,-500.0,0.00010999,2]
[335866756,1724553041498,-500.0,0.00010999,2]
[335866758,1724553041508,-500.0,0.00010999,2]
[335866760,1724553041517,-500.0,0.00010999,2]
[335866762,1724553041527,-179.72500965,0.00010999,2]
[335866778,1724553041676,-320.27499035,0.00010999,2]
[335866780,1724553041687,-500.0,0.00010999,2]
[335866782,1724553041697,-500.0,0.00010999,2]
[335866784,1724553041707,-500.0,0.00010999,2]
[335866786,1724553041717,-500.0,0.00010999,2]
[335866788,1724553041727,-500.0,0.00010999,2]
[335866790,1724553041738,-500.0,0.00010999,2]
[335866792,1724553041749,-500.0,0.00010999,2]
[335866794,1724553041758,-500.0,0.00010999,2]
[335866796,1724553041768,-500.0,0.00010999,2]
[335866799,1724553041777,-500.0,0.00010999,2]
[335866801,1724553041787,-426.11364746,0.00010999,2]
[335866803,1724553041798,-500.0,0.00010999,2]
[335866805,1724553041809,-500.0,0.00010999,2]
[335866807,1724553041819,-500.0,0.00010999,2]
[335866809,1724553041828,-500.0,0.00010999,2]
[335866810,1724553041837,-500.0,0.00010999,2]
[335866812,1724553041847,-500.0,0.00010999,2]
[335866814,1724553041857,-500.0,0.00010999,2]
[335866816,1724553041867,-500.0,0.00010999,2]
[335866818,1724553041876,-500.0,0.00010999,2]
[335866820,1724553041885,-597.87845701,0.00010999,2]
[335866822,1724553041895,-269.291377,0.00010999,2]
[335866824,1724553041904,-269.291377,0.00010999,2]
[335866826,1724553041914,-269.291377,0.00010999,2]
[335866828,1724553041924,-269.291377,0.00010999,2]
[335866830,1724553041933,-269.291377,0.00010999,2]
[335866832,1724553041942,-269.291377,0.00010999,2]
[335866834,1724553041952,-269.291377,0.00010999,2]
[335866836,1724553041962,-500.0,0.00010999,2]
[335866838,1724553041972,-500.0,0.00010999,2]
[335866840,1724553041982,-500.0,0.00010999,2]
[335866842,1724553041992,-500.0,0.00010999,2]
[335866844,1724553042003,-269.291377,0.00010999,2]
[335866846,1724553042014,-554.02382915,0.00010999,2]
[335866848,1724553042024,-269.291377,0.00010999,2]
[335866850,1724553042033,-269.291377,0.00010999,2]
[335866852,1724553042043,-269.291377,0.00010999,2]
[335866854,1724553042052,-269.291377,0.00010999,2]
[335866872,1724553042061,-269.291377,0.00010999,2]
[335866874,1724553042224,-269.291377,0.00010999,2]
[335866876,1724553042234,-500.0,0.00010999,2]
[335866878,1724553042244,-500.0,0.00010999,2]
[335866880,1724553042254,-500.0,0.00010999,2]
[335866882,1724553042263,-500.0,0.00010999,2]
[335866884,1724553042273,-500.0,0.00010999,2]
[335866886,1724553042283,-500.0,0.00010999,2]
[335866888,1724553042294,-500.0,0.00010999,2]
[335866890,1724553042305,-500.0,0.00010999,2]
[335866892,1724553042315,-500.0,0.00010999,2]
[335866894,1724553042325,-500.0,0.00010999,2]
[335866896,1724553042335,-500.0,0.00010999,2]
[335866898,1724553042344,-500.0,0.00010999,2]
[335866900,1724553042355,-500.0,0.00010999,2]
[335866902,1724553042368,-500.0,0.00010999,2]
[335866904,1724553042378,-500.0,0.00010999,2]
[335866906,1724553042388,-500.0,0.00010999,2]
[335866908,1724553042399,-500.0,0.00010999,2]
[335866910,1724553042409,-500.0,0.00010999,2]
[335866911,1724553042418,-500.0,0.00010999,2]
[335866913,1724553042427,-500.0,0.00010999,2]
[335866915,1724553042437,-500.0,0.00010999,2]
[335866917,1724553042447,-429.25917472,0.00010999,2]
[335866919,1724553042457,-500.0,0.00010999,2]
[335866921,1724553042468,-500.0,0.00010999,2]
[335866923,1724553042477,-500.0,0.00010999,2]
[335866925,1724553042487,-500.0,0.00010999,2]
[335866927,1724553042497,-500.0,0.00010999,2]
[335866929,1724553042508,-500.0,0.00010999,2]
[335866930,1724553042517,-500.0,0.00010999,2]
[335866932,1724553042528,-500.0,0.00010999,2]
[335866935,1724553042537,-500.0,0.00010999,2]
[335866936,1724553042547,-500.0,0.00010999,2]
[335866939,1724553042558,-500.0,0.00010999,2]
[335866941,1724553042568,-500.0,0.00010999,2]
[335866942,1724553042577,-500.0,0.00010999,2]
[335866944,1724553042588,-500.0,0.00010999,2]
[335866946,1724553042597,-500.0,0.00010999,2]
[335866948,1724553042607,-500.0,0.00010999,2]
[335866950,1724553042616,-500.0,0.00010999,2]
[335866953,1724553042626,-500.0,0.00010999,2]
[335866955,1724553042635,-490.84271897,0.00010999,2]
[335866957,1724553042645,-500.0,0.00010999,2]
[335866959,1724553042654,-500.0,0.00010999,2]
[335866961,1724553042664,-500.0,0.00010999,2]
[335866963,1724553042674,-500.0,0.00010999,2]
[335866965,1724553042683,-500.0,0.00010999,2]
[335866967,1724553042693,-500.0,0.00010999,2]
[335866969,1724553042703,-500.0,0.00010999,2]
[335866971,1724553042712,-500.0,0.00010999,2]
[335866973,1724553042721,-446.15761832,0.00010999,2]
[335866975,1724553042732,-500.0,0.00010999,2]
[335866977,1724553042741,-500.0,0.00010999,2]
[335866978,1724553042751,-500.0,0.00010999,2]
[335866980,1724553042761,-500.0,0.00010999,2]
[335866982,1724553042770,-500.0,0.00010999,2]
[335866984,1724553042780,-500.0,0.00010999,2]
[335866986,1724553042789,-500.0,0.00010999,2]
[335866988,1724553042798,-500.0,0.00010999,2]
[335866991,1724553042807,-500.0,0.00010999,2]
[335866993,1724553042817,-500.0,0.00010999,2]
[335866995,1724553042827,-500.0,0.00010999,2]
[335866997,1724553042835,-500.0,0.00010999,2]
[335866999,1724553042845,-500.0,0.00010999,2]
[335867001,1724553042854,-500.0,0.00010999,2]
[335867003,1724553042864,-500.0,0.00010999,2]
[335867004,1724553042873,-500.0,0.00010999,2]
[335867007,1724553042882,-500.0,0.00010999,2]
[335867010,1724553042891,-500.0,0.00010999,2]
[335867013,1724553042900,-500.0,0.00010999,2]
[335867017,1724553042909,-500.0,0.00010999,2]
[335867019,1724553042919,-500.0,0.00010999,2]
[335867021,1724553042928,-500.0,0.00010999,2]
[335867023,1724553042938,-500.0,0.00010999,2]
[335867025,1724553042947,-431.17398257,0.00010999,2]
[335867027,1724553042956,-500.0,0.00010999,2]
[335867029,1724553042966,-500.0,0.00010999,2]
[335867031,1724553042975,-538.2213,0.00010999,2]
[335867033,1724553042984,-500.0,0.00010999,2]
[335867035,1724553042994,-500.0,0.00010999,2]
[335867037,1724553043004,-500.0,0.00010999,2]
[335867039,1724553043014,-500.0,0.00010999,2]
[335867041,1724553043023,-500.0,0.00010999,2]
[335867043,1724553043033,-500.0,0.00010999,2]
[335867045,1724553043042,-500.0,0.00010999,2]
[335867047,1724553043051,-500.0,0.00010999,2]
[335867049,1724553043060,-500.0,0.00010999,2]
[335867052,1724553043070,-500.0,0.00010999,2]
[335867054,1724553043079,-500.0,0.00010999,2]
[335867056,1724553043088,-500.0,0.00010999,2]
[335867058,1724553043098,-500.0,0.00010999,2]
[335867060,1724553043107,-500.0,0.00010999,2]
[335867062,1724553043117,-440.88689019,0.00010999,2]
[335867064,1724553043126,-500.0,0.00010999,2]
[335867066,1724553043136,-500.0,0.00010999,2]
[335867068,1724553043146,-500.0,0.00010999,2]
[335867070,1724553043155,-500.0,0.00010999,2]
[335867073,1724553043164,-500.0,0.00010999,2]
[335867074,1724553043174,-500.0,0.00010999,2]
[335867076,1724553043185,-500.0,0.00010999,2]
[335867078,1724553043194,-500.0,0.00010999,2]
[335867081,1724553043206,-500.0,0.00010999,2]
[335867083,1724553043215,-500.0,0.00010999,2]
[335867086,1724553043224,-500.0,0.00010999,2]
[335867089,1724553043233,-500.0,0.00010999,2]
[335867091,1724553043243,-500.0,0.00010999,2]
[335867093,1724553043252,-169.52650155,0.00010999,2]
[335867095,1724553043261,-500.0,0.00010999,2]
[335867096,1724553043270,-500.0,0.00010999,2]
[335867098,1724553043279,-500.0,0.00010999,2]
[335867100,1724553043293,-329.60785668,0.00010999,2]
[335867102,1724553043302,-710.338105,0.00010999,2]
[335867104,1724553043311,-710.338105,0.00010999,2]
[335867106,1724553043320,-710.338105,0.00010999,2]
[335867108,1724553043330,-710.338105,0.00010999,2]
[335867110,1724553043339,-710.338105,0.00010999,2]
[335867112,1724553043349,-710.338105,0.00010999,2]
[335867114,1724553043358,-710.338105,0.00010999,2]
[335867116,1724553043369,-710.338105,0.00010999,2]
[335867118,1724553043379,-710.338105,0.00010999,2]
[335867120,1724553043389,-710.338105,0.00010999,2]
[335867122,1724553043398,-710.338105,0.00010999,2]
[335867124,1724553043407,-710.338105,0.00010999,2]
[335867126,1724553043416,-710.338105,0.00010999,2]
[335867128,1724553043425,-710.338105,0.00010999,2]
[335867130,1724553043442,-151.403905,0.00010999,2]
[335867132,1724553043451,-500.0,0.00010999,2]
[335867134,1724553043460,-500.0,0.00010999,2]
[335867136,1724553043470,-500.0,0.00010999,2]
[335867138,1724553043478,-500.0,0.00010999,2]
[335867140,1724553043487,-554.03595024,0.00010999,2]
[335867142,1724553043497,-507.1,0.00010999,2]
[335867144,1724553043506,-507.1,0.00010999,2]
[335867146,1724553043515,-507.1,0.00010999,2]
[335867148,1724553043524,-507.1,0.00010999,2]
[335867150,1724553043533,-151.0,0.00010999,2]
[335867152,1724553043542,-507.1,0.00010999,2]
[335867154,1724553043551,-507.1,0.00010999,2]
[335867156,1724553043561,-507.1,0.00010999,2]
[335867158,1724553043571,-507.1,0.00010999,2]
[335867160,1724553043580,-507.1,0.00010999,2]
[335867162,1724553043591,-507.1,0.00010999,2]
[335867164,1724553043599,-507.1,0.00010999,2]
[335867167,1724553043608,-507.1,0.00010999,2]
[335867170,1724553043617,-507.1,0.00010999,2]
[335867173,1724553043627,-507.1,0.00010999,2]
[335867175,1724553043636,-243.157728,0.00010999,2]
[335867177,1724553043644,-507.1,0.00010999,2]
[335867180,1724553043654,-507.1,0.00010999,2]
[335867183,1724553043663,-243.157728,0.00010999,2]
[335867185,1724553043672,-507.1,0.00010999,2]
[335867187,1724553043683,-507.1,0.00010999,2]
[335867189,1724553043691,-243.157728,0.00010999,2]
[335867191,1724553043700,-243.157728,0.00010999,2]
[335867193,1724553043710,-507.1,0.00010999,2]
[335867195,1724553043719,-507.1,0.00010999,2]
[335867197,1724553043728,-243.157728,0.00010999,2]
[335867199,1724553043737,-507.1,0.00010999,2]
[335867201,1724553043746,-243.157728,0.00010999,2]
[335867203,1724553043755,-507.1,0.00010999,2]
[335867205,1724553043764,-243.157728,0.00010999,2]
[335867207,1724553043774,-507.30594807,0.00010999,2]
[335867209,1724553043783,-243.157728,0.00010999,2]
[335867211,1724553043792,-243.157728,0.00010999,2]
[335867213,1724553043802,-605.80350131,0.00010999,2]
[335867215,1724553043811,-243.157728,0.00010999,2]
[335867217,1724553043820,-500.0,0.00010999,2]
[335867218,1724553043829,-243.157728,0.00010999,2]
[335867220,1724553043838,-151.0,0.00010999,2]
[335867222,1724553043847,-151.0,0.00010999,2]
[335867224,1724553043857,-243.157728,0.00010999,2]
[335867226,1724553043866,-2824.901843,0.00010999,2]
[335867228,1724553043875,-151.0,0.00010999,2]
[335867230,1724553043885,-243.157728,0.00010999,2]
[335867232,1724553043894,-500.0,0.00010999,2]
[335867234,1724553043903,-2824.901843,0.00010999,2]
[335867236,1724553043913,-151.0,0.00010999,2]
[335867238,1724553043922,-243.157728,0.00010999,2]
[335867240,1724553043931,-500.0,0.00010999,2]
[335867242,1724553043941,-500.0,0.00010999,2]
[335867245,1724553043950,-2824.901843,0.00010999,2]
[335867247,1724553043959,-151.0,0.00010999,2]
[335867249,1724553043968,-500.0,0.00010999,2]
[335867250,1724553043977,-500.0,0.00010999,2]
[335867253,1724553043986,-151.0,0.00010999,2]
[335867255,1724553043995,-500.0,0.00010999,2]
[335867256,1724553044004,-2824.901843,0.00010999,2]
[335867258,1724553044014,-500.0,0.00010999,2]
[335867260,1724553044023,-286.33176,0.00010999,2]
[335867262,1724553044032,-500.0,0.00010999,2]
[335867264,1724553044041,-2824.901843,0.00010999,2]
[335867266,1724553044050,-176.726303,0.00010999,2]
[335867268,1724553044060,-500.0,0.00010999,2]
[335867270,1724553044069,-2824.901843,0.00010999,2]
[335867273,1724553044079,-500.0,0.00010999,2]
[335867275,1724553044088,-2824.901843,0.00010999,2]
[335867277,1724553044098,-500.0,0.00010999,2]
[335867279,1724553044107,-500.0,0.00010999,2]
[335867281,1724553044116,-500.0,0.00010999,2]
[335867283,1724553044126,-500.0,0.00010999,2]
[335867285,1724553044135,-500.0,0.00010999,2]
[335867287,1724553044144,-2824.901843,0.00010999,2]
[335867289,1724553044152,-151.0,0.00010999,2]
[335867291,1724553044162,-500.0,0.00010999,2]
[335867293,1724553044171,-408.14885933,0.00010999,2]
[335867295,1724553044181,-2824.901843,0.00010999,2]
[335867297,1724553044190,-500.0,0.00010999,2]
[335867299,1724553044199,-2824.901843,0.00010999,2]
[335867300,1724553044208,-500.0,0.00010999,2]
[335867302,1724553044217,-2824.901843,0.00010999,2]
[335867305,1724553044227,-500.0,0.00010999,2]
[335867307,1724553044237,-2824.901843,0.00010999,2]
[335867309,1724553044247,-500.0,0.00010999,2]
[335867311,1724553044256,-500.0,0.00010999,2]
[335867313,1724553044266,-2824.901843,0.00010999,2]
[335867315,1724553044275,-500.0,0.00010999,2]
[335867317,1724553044287,-2824.901843,0.00010999,2]
[335867319,1724553044296,-500.0,0.00010999,2]
[335867321,1724553044306,-500.0,0.00010999,2]
[335867322,1724553044316,-477.82953615,0.00010999,2]
[335867324,1724553044325,-151.0,0.00010999,2]
[335867326,1724553044335,-500.0,0.00010999,2]
[335867329,1724553044347,-514.40155128,0.00010999,2]
[335867331,1724553044361,-500.0,0.00010999,2]
[335867333,1724553044373,-536.28021031,0.00010999,2]
[335867335,1724553044384,-36558.28180548,0.00011,2]
[335867338,1724553044395,-42503.8429549,0.00011,2]
[335867355,1724553044549,-436.19866259,0.0001089,2]
[335867890,1724553254959,269.62,9.277e-05,2]
[335867892,1724553849161,1050.0,0.0001,2]
[335867893,1724553850577,272.12,8.219e-05,2]
[335867896,1724554048276,250.0,9.97e-05,2]
[335867897,1724554050035,2261.95998714,0.0001,2]
[335867918,1724554232399,-2048.05491052,0.00010019,2]
[335867998,1724554240456,-1403.37987992,0.00010019,2]
[335867999,1724554240468,-277.09,0.00010019,2]
[335868000,1724554240481,-397.96499995,0.00010019,2]
[335868013,1724554246342,-85552.45162701,0.00010019,2]
[335868014,1724554246352,-150.0,0.0001002,2]
[335868015,1724554246361,-3995.87591377,0.00010022,2]
[335868016,1724554282560,1354.83602924,0.00010009,2]
[335868017,1724554331483,155.27659037,0.00010009,2]
[335868018,1724554363996,288.89,8.219e-05,2]
[335868019,1724554372283,1682.36,9.937e-05,2]
[335868020,1724554378933,362.0,0.00027,120]
[335868021,1724554382097,241.29,9.938e-05,2]
[335868022,1724554568630,532.64524068,0.00010009,2]
[335868023,1724554577135,31885.4,9.94e-05,2]
[335868024,1724554595298,155.33961833,0.00010009,2]
[335868025,1724554694191,298.35,9.934e-05,2]
[335868026,1724554718989,602.84647187,0.00010009,2]
[335868027,1724554729854,349.72942752,0.00010009,2]
[335868028,1724554755890,155.58121485,0.00010009,2]
[335868029,1724554757062,3879.82904589,0.00010009,2]
[335868030,1724554835982,204.87966753,0.00010009,2]
[335868031,1724554843952,155.0,0.00010009,2]
[335868032,1724554849877,289.53,8.219e-05,2]
[335868033,1724554849909,606.29385767,0.00010009,2]
[335868034,1724554868648,247.06,9.949e-05,2]
[335868035,1724554883142,155.79086733,0.00010009,2]
[335868036,1724554886296,155.0,0.00010009,2]
[335868056,1724554904596,155.62264853,0.00010009,2]
[335868057,1724554916080,486.13623312,0.00010009,2]
[335868058,1724554926066,436.37653072,0.00010009,2]
[335868059,1724554929492,159.60847032,0.00010009,2]
[335868060,1724554937569,3108.12,9.963e-05,2]
[335868061,1724554982507,164.66394059,0.00010009,2]
[335868062,1724554986089,155.25719629,0.00010009,2]
[335868063,1724554997486,275.68457301,0.00010009,2]
[335868064,1724554997974,383.01190706,0.00010009,2]
[335868065,1724555007184,237.21122903,0.00010009,2]
[335868066,1724555010130,155.40635191,0.00010009,2]
[335868067,1724555014565,394.09052626,0.00010009,2]
[335868068,1724555026573,421.8487256,0.00010009,2]
[335868069,1724555026742,165.89689433,0.00010009,2]
[335868070,1724555027364,1000.0,9.922e-05,2]
[335868071,1724555038776,216.27267624,0.00010009,2]
[335868072,1724555047507,328.2488375,0.00010009,2]
[335868073,1724555064307,155.72853173,0.00010009,2]
[335868074,1724555194533,155.0,0.00010009,2]
[335868076,1724555341726,289.39,8.219e-05,2]
[335868077,1724555349600,161.32,9.846e-05,2]
[335868087,1724555360549,249.94,9.868e-05,2]
[335868092,1724555405957,961.36529,0.0001,2]
[335868093,1724555432867,-937.78,0.00010028,2]
[335868094,1724555432878,-347.31495946,0.0001003,2]
[335868100,1724555440609,-1315.17028642,0.00010026,2]
[335868101,1724555440618,-614.05033054,0.0001003,2]
[335868102,1724555440628,-997.81084235,0.00010097,2]
[335868103,1724555440865,-26.77777178,0.00010097,2]
[335868104,1724555440874,-961.3653,0.000101,2]
[335868105,1724555440884,-961.36529,0.0001018,2]
[335868106,1724555440893,-961.36529,0.0001026,2]
[335868107,1724555440902,-410.4449954,0.00010295,2]
[335868108,1724555440911,-961.3653,0.0001034,2]
[335868109,1724555440920,-289.39,0.00010468,2]
[335868110,1724555440929,-168.2415039,0.00010505,2]
[335868111,1724555440941,-130.04750423,0.00010505,2]
[335868112,1724555440951,-161.83592778,0.00010529,2]
[335868113,1724555441069,-248.60906762,0.00010529,2]
[335868114,1724555441079,-150.99,0.0001054,2]
[335868115,1724555441088,-100.40093238,0.00010562,2]
[335868142,1724555443578,-88.23203362,0.00010562,2]
[335868143,1724555443588,-300.0,0.00010565,2]
[335868144,1724555443597,-13.24689303,0.00010566,2]
[335868145,1724555443772,-141.91454833,0.00010566,2]
[335868146,1724555443783,-300.0,0.00010599,2]
[335868147,1724555443793,-531.66,0.000106,2]
[335868148,1724555443802,-421.55,0.000106,2]
[335868149,1724555443811,-531.66,0.000106,2]
[335868150,1724555443821,-729.9,0.000106,2]
[335868151,1724555443831,-150.0,0.000106,2]
[335868152,1724555443840,-426.91,0.000106,2]
[335868153,1724555443850,-426.91,0.000106,2]
[335868154,1724555443860,-150.0,0.000106,2]
[335868155,1724555443869,-531.66,0.000106,2]
[335868156,1724555443879,-150.0,0.000106,2]
[335868157,1724555443888,-421.55,0.000106,2]
[335868158,1724555443897,-150.0,0.000106,2]
[335868159,1724555443906,-356.98,0.000106,2]
[335868160,1724555443916,-450.05,0.000106,2]
[335868161,1724555443925,-356.98,0.000106,2]
[335868162,1724555443935,-150.0,0.000106,2]
[335868163,1724555443944,-531.62,0.000106,2]
[335868164,1724555443955,-151.03,0.000106,2]
[335868165,1724555443964,-426.91,0.000106,2]
[335868166,1724555443974,-1063.15,0.000106,2]
[335868167,1724555443985,-150.0,0.000106,2]
[335868168,1724555443996,-426.91,0.000106,2]
[335868169,1724555444007,-150.0,0.000107,2]
[335868170,1724555444017,-150.0,0.000107,2]
[335868171,1724555444027,-150.0,0.000107,2]
[335868172,1724555444036,-426.91,0.000107,2]
[335868173,1724555444046,-287.2,0.000107,2]
[335868174,1724555444055,-150.0,0.000107,2]
[335868175,1724555444064,-421.55,0.000107,2]
[335868176,1724555444074,-150.0,0.000107,2]
[335868177,1724555444084,-426.91,0.000107,2]
[335868178,1724555444095,-150.0,0.000107,2]
[335868179,1724555444104,-421.55,0.000107,2]
[335868180,1724555444113,-150.0,0.000107,2]
[335868181,1724555444122,-150.0,0.000107,2]
[335868182,1724555444132,-426.95,0.000107,2]
[335868183,1724555444141,-150.9,0.000107,2]
[335868184,1724555444150,-421.59,0.000107,2]
[335868185,1724555444160,-150.0,0.000107,2]
[335868186,1724555444169,-150.0,0.000107,2]
[335868187,1724555444178,-531.66,0.000107,2]
[335868188,1724555444187,-150.46,0.000107,2]
[335868189,1724555444197,-970.41,0.000107,2]
[335868190,1724555444206,-841.51,0.000107,2]
[335868191,1724555444215,-332.13,0.000107,2]
[335868192,1724555444225,-531.66,0.000107,2]
[335868193,1724555444234,-150.0,0.000107,2]
[335868194,1724555444243,-150.0,0.000107,2]
[335868195,1724555444252,-150.0,0.000107,2]
[335868196,1724555444262,-426.91,0.000107,2]
[335868197,1724555444272,-421.55,0.000107,2]
[335868198,1724555444282,-356.98,0.000107,2]
[335868199,1724555444291,-531.62,0.000107,2]
[335868200,1724555444300,-151.06,0.000107,2]
[335868201,1724555444310,-426.91,0.000107,2]
[335868202,1724555444320,-410.4449954,0.00010796,2]
[335868203,1724555444329,-430.24,0.000108,2]
[335868204,1724555444339,-150.24,0.000108,2]
[335868205,1724555444348,-150.0,0.000108,2]
[335868206,1724555444357,-797.22,0.000108,2]
[335868207,1724555444367,-150.0,0.000108,2]
[335868208,1724555444376,-356.95,0.000108,2]
[335868209,1724555444386,-150.0,0.000108,2]
[335868210,1724555444395,-418.94,0.000108,2]
[335868211,1724555444404,-426.91,0.000108,2]
[335868212,1724555444413,-150.16,0.000108,2]
[335868213,1724555444422,-151.14,0.000108,2]
[335868214,1724555444432,-301.05,0.000108,2]
[335868215,1724555444442,-151.06,0.000108,2]
[335868216,1724555444452,-954.72,0.000108,2]
[335868217,1724555444462,-426.91,0.000108,2]
[335868218,1724555444471,-150.0,0.000108,2]